bitfinex-derivatives/quotes_SOLF0:USTF0_20250509
["timestamp","ask_amount","ask_price","bid_price","bid_amount"]
[1746812497611,37.2548,171.38,171.35,5.8356]
[1746812497812,31.42,171.38,171.3,5.7381]
[1746812498208,31.42,171.38,171.37,5.835]
[1746812498816,68.4134,171.42,171.34,31.26]
[1746812499013,31.3,171.42,171.34,31.26]
[1746812499213,31.3,171.42,171.34,388.26]
[1746812499716,31.3,171.42,171.41,5.8336]
[1746812500810,5.8325,171.45,171.42,5.8332]
[1746812501013,5.8326,171.44,171.42,5.8332]
[1746812501218,31.3,171.46,171.34,388.26]
[1746812501415,5.8324,171.45,171.34,388.26]
[1746812501919,5.8324,171.45,171.43,5.8329]
[1746812502117,31.3,171.46,171.34,388.26]
[1746812502617,31.3,171.46,171.35,11.6712]
[1746812502915,31.3,171.46,171.35,368.6712]
[1746812503417,31.3,171.46,171.44,5.8323]
[1746812503618,31.3,171.46,171.39,31.24]
[1746812503917,31.3,171.46,171.4,5.7694]
[1746812504416,29.085,171.46,171.4,5.7694]
[1746812505120,29.085,171.46,171.44,5.8324]
[1746812506815,29.085,171.46,171.4,5.7694]
[1746812507420,29.085,171.46,171.44,5.8324]
[1746812507617,29.085,171.46,171.4,5.7694]
[1746812508220,535.5,171.51,171.4,362.7694]
[1746812508221,31.28,171.5,171.4,362.7694]
[1746812509216,31.28,171.5,171.48,5.831]
[1746812510622,31.28,171.5,171.49,5.8309]
[1746812511019,5.6738,171.58,171.44,31.2]
[1746812511223,31.28,171.54,171.44,388.2]
[1746812512413,31.28,171.54,171.53,5.8295]
[1746812512813,31.28,171.58,171.53,5.8295]
[1746812513018,5.8288,171.56,171.53,5.8295]
[1746812513213,31.28,171.58,171.52,5.8297]
[1746812513925,5.8291,171.55,171.52,5.8297]
[1746812514325,31.28,171.58,171.53,5.8295]
[1746812514526,5.8288,171.56,171.53,5.8295]
[1746812514825,31.28,171.58,171.53,5.8295]
[1746812515014,31.28,171.58,171.54,5.8292]
[1746812515217,31.28,171.58,171.49,31.2]
[1746812515427,31.28,171.58,171.54,5.829]
[1746812515627,31.28,171.58,171.5,5.7455]
[1746812516031,31.28,171.58,171.54,5.8289]
[1746812516218,5.8283,171.57,171.54,5.8289]
[1746812516526,31.28,171.58,171.5,5.7455]
[1746812516723,31.28,171.58,171.49,357.0]
[1746812517425,1.03876945,171.57,171.49,357.0]
[1746812518129,5.8306,171.5,171.49,357.0]
[1746812519631,31.28,171.52,171.41,31.28]
[1746812520330,5.831,171.49,171.41,31.28]
[1746812520533,31.28,171.52,171.41,31.28]
[1746812520729,31.28,171.52,171.44,5.8325]
[1746812521932,31.28,171.52,171.41,31.28]
[1746812523632,37.1101,171.52,171.49,5.8307]
[1746812523834,31.28,171.52,171.45,31.14]
[1746812524230,5.8308,171.5,171.47,5.8313]
[1746812524532,5.8308,171.5,171.45,31.14]
[1746812524732,5.8303,171.51,171.48,5.831]
[1746812524932,31.28,171.52,171.45,31.14]
[1746812525131,31.28,171.52,171.46,5.7584]
[1746812528832,37.1101,171.52,171.46,5.7584]
[1746812529937,37.1101,171.52,171.49,5.8307]
[1746812532938,31.28,171.52,171.5,5.8305]
[1746812533246,31.14,171.56,171.46,37.8984]
[1746812533538,36.9673,171.6,171.57,5.828]
[1746812534241,36.9673,171.6,171.58,5.8278]
[1746812534739,5.8276,171.59,171.57,5.828]
[1746812534939,31.14,171.6,171.51,31.14]
[1746812535141,31.14,171.6,171.51,388.14]
[1746812535741,62.24,171.64,171.51,388.14]
[1746812535937,31.14,171.64,171.52,15.40909551]
[1746812536239,31.14,171.64,171.62,5.8265]
[1746812537741,36.9659,171.64,171.61,5.8267]
[1746812537940,535.06,171.68,171.57,391.7244]
[1746812538440,535.06,171.68,171.64,5.8256]
[1746812538839,5.825,171.67,171.64,5.8256]
[1746812539041,535.06,171.68,171.64,5.8256]
[1746812539237,535.06,171.68,171.57,391.7244]
[1746812539439,5.8257,171.65,171.57,391.7244]
[1746812540142,535.06,171.68,171.57,391.7244]
[1746812540442,31.14,171.68,171.57,391.7244]
[1746812541140,31.14,171.68,171.63,5.8259]
[1746812541141,5.8254,171.66,171.63,5.8259]
[1746812541539,31.14,171.68,171.57,391.7244]
[1746812542644,31.12,171.71,171.57,391.7244]
[1746812543246,5.8247,171.68,171.57,391.7244]
[1746812543447,31.12,171.71,171.57,391.7244]
[1746812543848,5.8244,171.69,171.66,5.825]
[1746812544254,31.12,171.71,171.62,31.04]
[1746812544948,5.8245,171.68,171.65,5.8252]
[1746812545147,31.12,171.71,171.62,31.04]
[1746812545545,31.12,171.71,171.57,360.6444]
[1746812545750,31.12,171.71,171.57,3.6444]
[1746812545949,1.6655,171.7,171.57,3.6444]
[1746812546150,5.827,171.61,171.58,5.8277]
[1746812549149,5.8272,171.6,171.58,5.8277]
[1746812549653,5.8272,171.6,171.57,9.4725]
[1746812549850,31.0,171.63,171.53,1.9583]
[1746812550349,5.8281,171.58,171.54,5.829]
[1746812550551,31.0,171.63,171.51,118.95027513]
[1746812550752,31.0,171.59,171.51,118.95027513]
[1746812550950,5.829,171.55,171.52,5.8299]
[1746812551154,31.0,171.58,171.5,31.0]
[1746812551657,5.8285,171.57,171.53,5.8293]
[1746812552157,5.8285,171.57,171.5,31.0]
[1746812552359,5.8285,171.57,171.54,5.8289]
[1746812552659,31.0,171.58,171.5,31.0]
[1746812553362,5.8283,171.57,171.54,5.829]
[1746812553660,31.0,171.58,171.5,31.0]
[1746812554359,5.8284,171.57,171.54,5.8291]
[1746812554960,36.8279,171.58,171.55,5.8286]
[1746812555659,5.8282,171.57,171.54,5.8291]
[1746812555865,31.0,171.58,171.5,31.0]
[1746812556859,31.0,171.58,171.49,388.0]
[1746812557163,31.0,171.58,171.47,5.7595]
[1746812557367,5.8302,171.52,171.49,5.8307]
[1746812557555,5.8302,171.52,171.47,5.7595]
[1746812557962,5.8302,171.52,171.49,5.8306]
[1746812558357,5.8302,171.52,171.47,5.7595]
[1746812558862,5.8303,171.51,171.47,5.7595]
[1746812559163,31.0,171.54,171.47,5.7595]
[1746812559363,31.0,171.54,171.49,5.8306]
[1746812559364,5.8301,171.52,171.49,5.8306]
[1746812559871,5.8301,171.52,171.5,5.8305]
[1746812560071,5.8297,171.53,171.5,5.8305]
[1746812560270,31.0,171.54,171.47,5.7595]
[1746812560769,5.8301,171.52,171.49,5.8309]
[1746812561671,5.8301,171.52,171.5,5.8305]
[1746812561871,31.0,171.54,171.5,5.8305]
[1746812562471,31.0,171.54,171.48,5.8309]
[1746812562871,31.0,171.54,171.47,3.7873]
[1746812564075,5.8299,171.52,171.47,3.7873]
[1746812564273,31.0,171.54,171.47,3.7873]
[1746812564672,36.8294,171.54,171.51,5.8302]
[1746812565071,31.0,171.54,171.47,3.7873]
[1746812565270,31.0,171.54,171.53,5.8295]
[1746812565471,61.94,171.58,171.48,32.8152]
[1746812566473,31.0,171.58,171.48,389.8152]
[1746812566676,5.8284,171.57,171.54,5.8291]
[1746812566874,31.0,171.58,171.48,389.8152]
[1746812567173,61.94,171.58,171.48,389.8152]
[1746812567674,5.8294,171.54,171.51,5.8302]
[1746812567866,61.94,171.58,171.48,357.0]
[1746812568273,5.8304,171.51,171.48,362.8311]
[1746812568473,31.0,171.53,171.48,357.0]
[1746812568878,5.8306,171.5,171.48,357.0]
[1746812570074,5.8304,171.51,171.48,357.0]
[1746812570579,5.8304,171.51,171.48,362.8312]
[1746812571079,5.83,171.52,171.49,5.8307]
[1746812571378,61.92,171.53,171.48,357.0]
[1746812571780,67.7497,171.53,171.5,5.8304]
[1746812571976,61.92,171.53,171.48,357.0]
[1746812572283,31.0,171.53,171.51,5.8302]
[1746812572578,31.0,171.53,171.46,31.94]
[1746812572769,31.0,171.53,171.46,388.94]
[1746812572974,3.8832,171.61,171.46,388.94]
[1746812573175,61.9,171.6,171.47,15.40909551]
[1746812573375,61.9,171.6,171.48,31.0]
[1746812573578,61.9,171.6,171.48,32.9484]
[1746812573780,61.9,171.6,171.49,3.8425]
[1746812574983,61.9,171.6,171.52,5.8299]
[1746812575380,61.9,171.6,171.49,3.8425]
[1746812575683,5.8288,171.56,171.53,5.8294]
[1746812575982,61.9,171.6,171.53,5.8294]
[1746812576185,5.8289,171.55,171.52,5.8297]
[1746812576682,5.8289,171.55,171.49,3.8425]
[1746812577083,5.8294,171.54,171.49,3.8425]
[1746812577278,61.9,171.6,171.49,3.8425]
[1746812577677,30.88,171.59,171.49,3.8425]
[1746812577979,5.828,171.58,171.55,5.8287]
[1746812578483,61.88,171.6,171.49,360.8425]
[1746812578680,5.828,171.58,171.55,5.8287]
[1746812578881,61.88,171.6,171.55,5.8287]
[1746812579487,31.0,171.6,171.55,5.8287]
[1746812579982,31.0,171.6,171.54,5.8291]
[1746812580386,5.8284,171.57,171.54,5.8291]
[1746812581587,5.8287,171.56,171.53,5.8294]
[1746812582186,5.8283,171.57,171.54,5.829]
[1746812583088,5.8287,171.56,171.53,5.8293]
[1746812583576,5.8287,171.56,171.49,360.8425]
[1746812583780,5.8287,171.56,171.49,3.8425]
[1746812583992,5.8287,171.56,171.49,44.28405544]
[1746812585087,5.8287,171.56,171.53,5.8294]
[1746812585790,31.0,171.6,171.49,44.28405544]
[1746812586388,31.0,171.6,171.53,5.8295]
[1746812586591,5.829,171.55,171.49,44.28405544]
[1746812586990,5.829,171.55,171.52,5.8297]
[1746812588196,5.8285,171.57,171.49,13.44405544]
[1746812588496,31.0,171.6,171.52,9.60155544]
[1746812588992,5.8276,171.59,171.52,9.60155544]
[1746812589193,31.0,171.6,171.52,9.60155544]
[1746812589392,31.0,171.6,171.52,366.60155544]
[1746812589593,31.0,171.6,171.53,30.8]
[1746812590291,30.86,171.64,171.55,9.60155544]
[1746812590496,30.86,171.64,171.56,5.7396]
[1746812590691,5.8263,171.63,171.56,5.7396]
[1746812591096,5.8263,171.63,171.6,5.827]
[1746812592795,5.8263,171.63,171.56,5.7396]
[1746812592796,30.86,171.64,171.56,5.7396]
[1746812593297,5.8274,171.6,171.57,5.8281]
[1746812594696,30.86,171.64,171.53,9.60155544]
[1746812595098,30.86,171.64,171.56,5.8284]
[1746812595600,5.8279,171.58,171.55,5.8287]
[1746812597999,5.8279,171.58,171.56,5.8285]
[1746812598200,5.8276,171.59,171.53,9.60155544]
[1746812598401,61.62,171.64,171.53,9.60155544]
[1746812598801,5.8263,171.63,171.6,5.827]
[1746812599299,5.8265,171.62,171.59,5.8274]
[1746812600101,5.8265,171.62,171.6,5.8271]
[1746812600801,5.8262,171.63,171.6,5.8271]
[1746812601004,61.62,171.64,171.61,5.8267]
[1746812601199,30.86,171.64,171.56,9.60155544]
[1746812601699,30.86,171.64,171.62,5.8263]
[1746812601901,36.6859,171.64,171.56,40.34155544]
[1746812602095,36.6859,171.64,171.61,5.8266]
[1746812602903,5.8262,171.63,171.61,5.8266]
[1746812603401,5.8262,171.63,171.56,40.34155544]
[1746812603402,30.86,171.64,171.62,5.8264]
[1746812603797,30.86,171.64,171.56,40.34155544]
[1746812604101,30.84,171.7,171.62,9.60155544]
[1746812604406,30.84,171.7,171.66,5.8249]
[1746812604595,5.8242,171.69,171.66,5.8249]
[1746812604792,30.84,171.7,171.66,5.8249]
[1746812605202,5.8243,171.69,171.66,5.8249]
[1746812605502,30.84,171.7,171.62,9.60155544]
[1746812605799,30.84,171.7,171.61,30.72]
[1746812606496,5.8256,171.65,171.61,30.72]
[1746812606693,5.8256,171.65,171.62,5.8262]
[1746812607203,5.8256,171.65,171.62,5.8264]
[1746812607501,5.8252,171.66,171.61,30.72]
[1746812607703,5.8252,171.66,171.63,5.8261]
[1746812607901,30.84,171.7,171.61,30.72]
[1746812608103,5.8258,171.65,171.61,30.72]
[1746812608796,5.8253,171.66,171.63,5.8261]
[1746812608996,30.84,171.7,171.61,30.72]
[1746812609697,5.8258,171.64,171.57,36.2578]
[1746812610001,30.84,171.7,171.57,393.2578]
[1746812610204,30.84,171.7,171.57,36.2578]
[1746812610796,5.826,171.64,171.57,36.2578]
[1746812610997,30.66,171.65,171.57,5.5778]
[1746812611200,5.8265,171.63,171.59,5.8273]
[1746812611397,30.66,171.65,171.59,5.8273]
[1746812611903,5.8268,171.62,171.59,5.8273]
[1746812612501,5.8272,171.6,171.57,5.8279]
[1746812614410,5.8272,171.6,171.58,5.8278]
[1746812615307,5.8271,171.61,171.58,5.8278]
[1746812616108,5.8271,171.61,171.59,5.8275]
[1746812617307,30.66,171.65,171.54,30.66]
[1746812617506,61.3,171.65,171.54,30.66]
[1746812617815,61.3,171.65,171.54,46.00667475]
[1746812618509,5.8258,171.64,171.61,5.8266]
[1746812619612,5.8262,171.63,171.6,5.827]
[1746812620210,30.66,171.65,171.59,5.8273]
[1746812620404,30.66,171.65,171.54,30.66]
[1746812621414,5.8273,171.6,171.57,5.828]
[1746812621615,30.66,171.65,171.54,30.66]
[1746812622016,5.8271,171.61,171.58,5.8278]
[1746812622211,30.66,171.65,171.54,30.66]
[1746812623715,30.66,171.65,171.57,5.8281]
[1746812624112,5.8274,171.6,171.57,5.8281]
[1746812628023,30.66,171.65,171.53,11.53341295]
[1746812628227,34.1458,171.65,171.53,11.53341295]
[1746812628619,43.74261295,171.65,171.53,1.9366]
[1746812628819,5.8285,171.56,171.53,5.8294]
[1746812629426,5.8285,171.56,171.54,5.8292]
[1746812629823,5.8285,171.56,171.52,2.8808]
[1746812630020,5.8285,171.56,171.53,5.8294]
[1746812630219,5.8283,171.57,171.52,2.8808]
[1746812630626,5.8283,171.57,171.54,5.829]
[1746812631029,36.5076,171.59,171.56,5.8283]
[1746812632432,5.8279,171.58,171.56,5.8283]
[1746812633034,36.5076,171.59,171.56,5.8283]
[1746812633332,30.68,171.59,171.55,5.8287]
[1746812633731,5.8279,171.58,171.55,5.8287]
[1746812633934,5.8279,171.58,171.56,5.8285]
[1746812634234,30.68,171.59,171.56,5.8285]
[1746812634435,36.5077,171.59,171.56,5.8285]
[1746812634935,5.8279,171.58,171.55,5.8287]
[1746812635334,5.8279,171.58,171.52,2.8808]
[1746812635630,5.8279,171.58,171.55,5.8287]
[1746812635935,36.5077,171.59,171.52,2.8808]
[1746812636137,36.5077,171.59,171.56,5.8285]
[1746812636935,5.8279,171.58,171.56,5.8285]
[1746812637134,30.68,171.59,171.52,2.8808]
[1746812637437,5.8284,171.57,171.52,2.8808]
[1746812637631,5.8284,171.57,171.54,5.8289]
[1746812637833,30.68,171.59,171.52,1.0]
[1746812638027,5.8287,171.56,171.52,1.0]
[1746812638235,30.68,171.59,171.52,6.8297]
[1746812639038,5.8291,171.55,171.52,6.8297]
[1746812639340,30.68,171.59,171.53,5.8295]
[1746812639734,5.8283,171.57,171.54,5.8291]
[1746812639934,30.68,171.59,171.52,1.0]
[1746812641340,36.5077,171.59,171.56,5.8283]
[1746812641542,30.68,171.59,171.52,1.0]
[1746812641931,5.8279,171.58,171.55,5.8286]
[1746812642144,5.8279,171.58,171.52,1.0]
[1746812642535,30.68,171.59,171.58,5.8278]
[1746812642741,30.5,171.62,171.52,62.0]
[1746812643135,5.8277,171.59,171.56,5.8283]
[1746812645744,30.5,171.62,171.52,62.0]
[1746812645947,1.9201,171.67,171.54,9.59681295]
[1746812646246,30.5,171.66,171.57,9.59681295]
[1746812646441,5.8255,171.65,171.62,5.8263]
[1746812646634,30.5,171.66,171.58,30.48]
[1746812646940,5.8259,171.64,171.61,5.8268]
[1746812649144,5.8259,171.64,171.6,5.8271]
[1746812649343,5.8259,171.64,171.58,30.48]
[1746812649647,5.8265,171.62,171.58,30.48]
[1746812650645,5.827,171.61,171.55,5.7519]
[1746812651244,5.827,171.61,171.57,5.828]
[1746812651543,5.8272,171.6,171.57,5.828]
[1746812651744,30.5,171.66,171.58,5.8278]
[1746812652145,5.827,171.61,171.58,5.8278]
[1746812652343,30.5,171.66,171.55,5.7519]
[1746812652541,9.59681295,171.62,171.52,1.0]
[1746812652840,5.8287,171.56,171.52,1.0]
[1746812653142,60.94,171.61,171.52,1.0]
[1746812653347,5.8291,171.55,171.52,1.0]
[1746812654949,5.8291,171.55,171.52,6.8297]
[1746812655346,5.8291,171.55,171.52,7.8297]
[1746812655744,60.94,171.61,171.52,2.0]
[1746812656350,60.94,171.61,171.54,5.8291]
[1746812657149,5.8282,171.57,171.54,5.8291]
[1746812657344,60.94,171.61,171.53,5.8294]
[1746812657552,60.94,171.61,171.52,2.0]
[1746812657743,5.8288,171.56,171.52,2.0]
[1746812657943,5.8288,171.56,171.52,7.8296]
[1746812658451,5.829,171.55,171.52,7.8296]
[1746812658948,70.53681295,171.61,171.52,7.8296]
[1746812659151,70.53681295,171.61,171.52,2.0]
[1746812659648,5.8295,171.53,171.52,2.0]
[1746812660748,5.4181,171.65,171.52,2.0]
[1746812660947,9.59681295,171.63,171.52,2.0]
[1746812661247,5.8281,171.58,171.53,5.8293]
[1746812661439,36.3281,171.58,171.52,2.0]
[1746812661850,5.8282,171.57,171.54,5.829]
[1746812662051,30.5,171.58,171.54,5.829]
[1746812662350,36.328,171.58,171.54,5.829]
[1746812662549,30.5,171.58,171.54,5.829]
[1746812664051,5.8282,171.57,171.54,5.829]
[1746812664246,5.8282,171.57,171.52,2.0]
[1746812664247,30.5,171.58,171.52,2.0]
[1746812664655,5.8288,171.56,171.52,7.8297]
[1746812665854,5.8289,171.55,171.52,7.8297]
[1746812667953,5.8293,171.54,171.52,2.0]
[1746812669153,5.829,171.55,171.52,7.8298]
[1746812669357,30.5,171.58,171.52,2.0]
[1746812669657,5.8295,171.53,171.52,2.0]
[1746812669851,60.84,171.53,171.46,358.0]
[1746812670056,60.84,171.53,171.46,1.0]
[1746812670654,5.8299,171.52,171.49,5.8307]
[1746812670856,30.5,171.53,171.46,1.0]
[1746812671451,30.5,171.53,171.51,5.83]
[1746812671954,30.5,171.53,171.5,5.8305]
[1746812672355,30.5,171.53,171.47,30.34]
[1746812673857,5.8301,171.52,171.49,5.8307]
[1746812674155,30.5,171.53,171.47,30.34]
[1746812674655,36.3296,171.53,171.5,5.8305]
[1746812675758,5.8299,171.52,171.5,5.8305]
[1746812676056,30.5,171.53,171.5,5.8305]
[1746812676655,36.3297,171.53,171.5,5.8305]
[1746812678254,36.3297,171.53,171.51,5.8302]
[1746812679955,36.3297,171.53,171.5,5.8304]
[1746812680456,36.3297,171.53,171.47,30.34]
[1746812681459,36.3297,171.53,171.5,5.8303]
[1746812682158,5.8299,171.52,171.5,5.8303]
[1746812683259,5.8299,171.52,171.49,5.8308]
[1746812683459,5.8303,171.51,171.46,1.0]
[1746812683662,30.5,171.53,171.46,1.0]
[1746812683959,30.5,171.53,171.48,5.8311]
[1746812684563,30.5,171.53,171.47,5.8314]
[1746812684860,30.5,171.53,171.46,1.0]
[1746812685162,5.8301,171.52,171.48,5.831]
[1746812685363,30.5,171.53,171.48,5.831]
[1746812685762,5.8303,171.51,171.48,5.831]
[1746812690167,30.5,171.53,171.46,1.0]
[1746812691365,5.8299,171.52,171.46,1.0]
[1746812692070,5.8299,171.52,171.49,5.8308]
[1746812692270,30.5,171.53,171.46,1.0]
[1746812692663,30.5,171.53,171.51,5.83]
[1746812693564,30.34,171.57,171.5,9.59681295]
[1746812693871,30.34,171.58,171.51,5.903]
[1746812694170,5.8282,171.57,171.54,5.829]
[1746812694469,30.34,171.59,171.51,5.903]
[1746812694668,30.34,171.59,171.51,1.9206]
[1746812694858,30.34,171.59,171.48,387.22]
[1746812695268,30.34,171.59,171.52,5.8299]
[1746812695466,30.34,171.59,171.48,387.22]
[1746812695969,30.34,171.59,171.51,5.8301]
[1746812697170,5.8288,171.56,171.51,5.8301]
[1746812697370,30.34,171.59,171.51,5.8301]
[1746812697869,9.61160938,171.53,171.46,1.0]
[1746812698064,60.54,171.52,171.46,1.0]
[1746812698264,60.54,171.51,171.46,1.0]
[1746812698471,5.8306,171.5,171.46,6.8318]
[1746812698969,36.1706,171.5,171.46,1.0]
[1746812699169,30.34,171.5,171.46,1.0]
[1746812699775,5.8316,171.47,171.46,1.0]
[1746812700467,36.0116,171.47,171.46,1.0]
[1746812701473,30.34,171.5,171.46,1.0]
[1746812701474,513.49160938,171.53,171.46,1.0]
[1746812701661,60.36,171.52,171.46,1.0]
[1746812702067,5.8316,171.47,171.46,1.0]
[1746812702476,60.36,171.52,171.46,1.0]
[1746812702667,5.8314,171.48,171.46,1.0]
[1746812702867,60.36,171.52,171.46,1.0]
[1746812703275,5.8309,171.5,171.46,1.0]
[1746812703476,30.18,171.51,171.46,1.0]
[1746812703774,534.06,171.53,171.46,1.0]
[1746812703970,30.18,171.53,171.47,5.7117]
[1746812704371,36.0098,171.53,171.49,5.8307]
[1746812705274,36.0098,171.53,171.5,5.8305]
[1746812705569,36.0098,171.53,171.47,5.7117]
[1746812705875,36.0098,171.53,171.49,5.8308]
[1746812706077,5.8299,171.52,171.49,5.8308]
[1746812707575,36.0097,171.53,171.5,5.8304]
[1746812707779,30.18,171.53,171.47,5.7117]
[1746812708076,30.18,171.57,171.48,30.14]
[1746812708376,30.18,171.57,171.52,5.8299]
[1746812709079,5.8286,171.56,171.53,5.8295]
[1746812709775,36.0083,171.57,171.48,30.14]
[1746812709974,36.0083,171.57,171.54,5.8292]
[1746812710169,30.18,171.57,171.48,30.14]
[1746812710375,5.8289,171.55,171.48,30.14]
[1746812710571,30.18,171.57,171.48,30.14]
[1746812710979,5.8296,171.53,171.5,5.8304]
[1746812711277,30.18,171.57,171.48,30.14]
[1746812711479,30.18,171.57,171.47,362.7117]
[1746812711680,5.8292,171.54,171.47,362.7117]
[1746812711881,30.18,171.57,171.47,362.7117]
[1746812712276,5.8296,171.53,171.47,362.7117]
[1746812712582,30.18,171.57,171.47,362.7117]
[1746812712775,15.43890938,171.6,171.56,5.8284]
[1746812712972,5.8273,171.6,171.49,30.1]
[1746812713176,534.1,171.61,171.51,9.61160938]
[1746812713983,9.61160938,171.6,171.49,357.0]
[1746812714482,5.8284,171.57,171.53,5.8293]
[1746812715083,9.61160938,171.6,171.53,5.8293]
[1746812715084,5.8285,171.56,171.53,5.8293]
[1746812715984,5.8283,171.57,171.54,5.8292]
[1746812716180,30.18,171.58,171.49,357.0]
[1746812716588,5.8279,171.58,171.55,5.8286]
[1746812717290,5.8282,171.57,171.54,5.8289]
[1746812717590,30.18,171.59,171.51,1.0]
[1746812717886,5.8283,171.57,171.53,5.8294]
[1746812718287,5.8283,171.57,171.51,1.0]
[1746812718481,5.8279,171.58,171.54,5.8289]
[1746812718788,30.18,171.59,171.51,1.0]
[1746812718985,30.18,171.59,171.57,5.828]
[1746812719188,30.18,171.59,171.51,31.08]
[1746812719689,30.18,171.59,171.58,5.8278]
[1746812722384,5.8266,171.62,171.59,5.8273]
[1746812722989,5.8266,171.62,171.6,5.8271]
[1746812723589,505.6046,171.69,171.51,465.44387137]
[1746812723889,60.2,171.68,171.51,403.44387137]
[1746812724090,30.16,171.68,171.51,403.44387137]
[1746812724278,60.2,171.68,171.53,11.6591]
[1746812724484,60.2,171.68,171.54,5.7466]
[1746812724688,5.8257,171.65,171.62,5.8264]
[1746812726992,5.8258,171.64,171.61,5.8267]
[1746812727493,30.02,171.67,171.55,387.16]
[1746812727794,30.02,171.67,171.59,5.8273]
[1746812728093,5.8263,171.63,171.6,5.8271]
[1746812728394,15.36387137,171.71,171.6,5.8271]
[1746812728395,60.16,171.75,171.61,30.0]
[1746812728594,60.16,171.75,171.61,33.804]
[1746812729293,60.16,171.75,171.66,5.8251]
[1746812729794,5.8237,171.71,171.66,5.8251]
[1746812729994,30.16,171.7,171.67,5.8246]
[1746812730195,30.16,171.7,171.62,1.8266]
[1746812731492,30.16,171.7,171.62,358.8266]
[1746812732394,5.8229,171.73,171.62,358.8266]
[1746812733008,59.96,171.85,171.67,15.36387137]
[1746812733303,59.96,171.85,171.68,63.6991]
[1746812733497,5.8206,171.8,171.68,63.6991]
[1746812733701,35.8006,171.8,171.69,1.8187]
[1746812733906,29.98,171.8,171.69,1.8187]
[1746812734101,59.94,171.8,171.69,1.8187]
[1746812734804,5.8218,171.76,171.71,5.8232]
[1746812735808,5.8221,171.75,171.69,1.8187]
[1746812736002,61.6035,171.8,171.68,61.8226]
[1746812736201,61.6035,171.8,171.68,31.8426]
[1746812736407,61.6035,171.8,171.68,1.8626]
[1746812736606,5.8228,171.73,171.69,5.8239]
[1746812737109,35.8026,171.74,171.7,5.8237]
[1746812737411,29.98,171.76,171.68,1.8626]
[1746812738201,29.98,171.76,171.69,29.94]
[1746812738598,29.98,171.76,171.69,33.8845]
[1746812738802,5.8223,171.75,171.69,33.8845]
[1746812739405,29.98,171.76,171.69,33.8845]
[1746812739610,29.98,171.76,171.69,29.94]
[1746812739909,29.98,171.76,171.68,1.8626]
[1746812740514,29.98,171.76,171.65,29.92]
[1746812741006,5.8232,171.72,171.68,5.8244]
[1746812741210,29.98,171.76,171.65,29.92]
[1746812741911,5.8228,171.73,171.65,29.92]
[1746812742112,29.98,171.76,171.65,29.92]
[1746812742310,35.802,171.76,171.71,5.8232]
[1746812742514,35.802,171.76,171.65,386.92]
[1746812742708,29.98,171.76,171.65,402.28387137]